lending/lending_fUSD_20240202
["ID","MTS","AMOUNT","RATE_DAILY","PERIOD"]
[313188598,1706904638157,-2026.29,0.00022776,2]
[313188599,1706904638166,-4017.34,0.00022776,2]
[313188600,1706904638176,-3144.0,0.00022799,2]
[313188601,1706904638185,-168.41,0.00022813,2]
[313188602,1706904638196,-500.0,0.00022815,2]
[313188603,1706904638205,-200.0,0.00022815,2]
[313188604,1706904638214,-500.0,0.00022815,2]
[313188605,1706904638223,-500.0,0.00022816,2]
[313188607,1706904638232,-200.0,0.00022816,2]
[313188609,1706904638242,-500.0,0.00022816,2]
[313188610,1706904638251,-500.0,0.00022816,2]
[313188612,1706904638260,-500.0,0.00022816,2]
[313188614,1706904638270,-500.0,0.00022816,2]
[313188616,1706904638279,-500.0,0.00022816,2]
[313188618,1706904638288,-284.552619,0.00022816,2]
[313188619,1706904638297,-200.0,0.00022816,2]
[313188620,1706904638306,-800.0,0.00022816,2]
[313188621,1706904638316,-200.0,0.00022816,2]
[313188622,1706904638330,-200.0,0.00022816,2]
[313188623,1706904638340,-168.41,0.00022875,2]
[313188624,1706904638349,-1857.92137233,0.00022899,2]
[313188625,1706904638358,-4160.07415144,0.000229,2]
[313188626,1706904638369,-155.69908197,0.000229,2]
[313188627,1706904638378,-161.01488756,0.000229,2]
[313188628,1706904638388,-739.45100906,0.000229,2]
[313188629,1706904638397,-200.23507266,0.000229,2]
[313188630,1706904638407,-671.57246283,0.000229,2]
[313188631,1706904638416,-153.69012756,0.000229,6]
[313188632,1706904638426,-3429.86214681,0.000229,2]
[313188633,1706904638438,-456.08638923,0.000229,2]
[313188634,1706904638448,-168.41,0.00022937,2]
[313188635,1706904638457,-342.60580933,0.00022998,2]
[313188636,1706904638467,-2971.1453248,0.00022998,2]
[313188637,1706904638477,-477.65712175,0.00022998,2]
[313188638,1706904638486,-525.17910571,0.00022998,2]
[313188639,1706904638496,-193.0776739,0.00022998,2]
[313188640,1706904638507,-168.41,0.00022998,2]
[313188641,1706904638518,-155.0,0.00022999,2]
[313188642,1706904638527,-388.8372743,0.00022999,2]
[313188643,1706904638536,-32932.22592803,0.00023,3]
[313188644,1706904638557,-676.34999986,0.00023,3]
[313188645,1706904638570,-537.7807874,0.00023,3]
[313188646,1706904638584,-301.06218014,0.00023,3]
[313188647,1706904638596,-15695.95506381,0.00023,3]
[313188653,1706904641156,-361.06318328,0.00022999,2]
[313188654,1706904641166,-15775.25106916,0.00023,3]
[313188655,1706904641255,-2153.05,0.00023,3]
[313188656,1706904641313,-1627.41531483,0.00023,3]
[313188657,1706904641329,-2795.14041374,0.00023,3]
[313188658,1706904641342,-2153.13715331,0.00023,3]
[313188659,1706904641354,-1689.95371135,0.00023,3]
[313188660,1706904641366,-387.72733961,0.00023,3]
[313188661,1706904641378,-356.19588052,0.00023,3]
[313188664,1706904642842,-213.36543943,0.000229,2]
[313188665,1706904642851,-127317.52257557,0.00023,3]
[313188668,1706904642887,-683.54778002,0.00023,3]
[313188671,1706904642898,-66195.25689468,0.00023,3]
[313188673,1706904642914,-3098.65000651,0.00023,3]
[313188681,1706904643002,-920.88836545,0.00023,3]
[313188682,1706904643058,-524.28739125,0.00023,3]
[313188683,1706904643070,-929.208073,0.00023,3]
[313188684,1706904643081,-11867.89184471,0.00023,3]
[313188984,1706904645969,-335.27295591,0.00022999,2]
[313188986,1706904645978,-608.35712949,0.00023,3]
[313188992,1706904646024,-277.00956143,0.00023,3]
[313189008,1706904646189,-18376.49720035,0.00023,3]
[313189014,1706904646244,-1547.29058807,0.00023,3]
[313189097,1706904682229,150.0,0.00021966,2]
[313189098,1706904704880,23900.0,0.00022308,2]
[313189099,1706904754935,1000.0,0.00022228,2]
[313189100,1706904797365,2976.2579,0.00022402,2]
[313189101,1706904803890,2667.912243,0.00022425,2]
[313189102,1706904860358,250.0,0.00022071,2]
[313189103,1706904874670,153.1,0.00022337,2]
[313189104,1706904874894,153.1,0.00022454,2]
[313189105,1706904940789,449.82,0.00020051,2]
[313189106,1706904941080,449.82,0.00022315,2]
[313189107,1706904947612,176.85,0.00022,2]
[313189108,1706904956701,200.0,0.00021919,2]
[313189109,1706905029646,1000.0,0.000225,2]
[313189110,1706905036909,635.38,0.00021892,2]
[313189111,1706905090578,-388.21422797,0.00022524,2]
[313189112,1706905090599,-61.78577203,0.00022525,2]
[313189113,1706905120823,11828.56,0.00021955,2]
[313189114,1706905158458,226.24,0.00021898,2]
[313189115,1706905188247,160.66882649,0.00022422,2]
[313189116,1706905216887,200.0,0.00021853,2]
[313189117,1706905220058,296.02,0.00021853,2]
[313189118,1706905293805,206.0,0.00022456,2]
[313189119,1706905296908,153.1,0.00022036,2]
[313189120,1706905297124,153.1,0.0002218,2]
[313189121,1706905297350,153.1,0.00022323,2]
[313189122,1706905297580,153.1,0.00022467,2]
[313189123,1706905332186,183.28,0.00021857,2]
[313189124,1706905380136,166.05,0.00021821,2]
[313189125,1706905412450,437.55,0.00019919,2]
[313189126,1706905412658,437.55,0.00022183,2]
[313189127,1706905467948,632.69,0.00021879,2]
[313189128,1706905513654,165.37,0.00021861,2]
[313189129,1706905516655,250.0,0.00021981,2]
[313189130,1706905539432,525.67645207,0.00022501,2]
[313189131,1706905574400,199.76023894,0.00022,2]
[313189132,1706905578975,1064.2090234,0.00022501,2]
[313189133,1706905590517,2314.06344386,0.00022501,2]
[313189134,1706905598296,22682.02115931,0.00022501,2]
[313189135,1706905619929,3199.69692174,0.0002198,2]
[313189136,1706905623600,160.66882649,0.00022403,2]
[313189137,1706905639912,3194.57080692,0.0002198,2]
[313189140,1706905766987,840.0,0.00021886,2]
[313189141,1706905785887,183.28,0.00021875,2]
[313189161,1706905832147,-155.0,0.00022536,2]
[313189162,1706905832156,-150.0,0.00022536,2]
[313189163,1706905832165,-273.8885869,0.00022537,2]
[313189164,1706905832176,-7534.19270901,0.00022537,2]
[313189165,1706905832185,-11098.90696572,0.00022538,9]
[313189166,1706905832195,-1044.63448064,0.0002254,2]
[313189167,1706905832206,-160.66882649,0.00022569,2]
[313189168,1706905832215,-2218.5,0.0002257,2]
[313189169,1706905832226,-153.1,0.0002261,2]
[313189170,1706905832237,-6585.40198857,0.00022667,2]
[313189171,1706905832246,-160.66882649,0.00022734,2]
[313189172,1706905832256,-499.99,0.00022734,2]
[313189173,1706905832265,-153.1,0.00022754,2]
[313189174,1706905832274,-1635.74,0.00022754,2]
[313189175,1706905832284,-155.0,0.00022768,2]
[313189176,1706905832293,-150.99,0.00022768,2]
[313189178,1706905832302,-1486.19,0.00022768,2]
[313189180,1706905832311,-218.37844749,0.00022769,2]
[313189182,1706905832320,-6553.0,0.0002277,2]
[313189184,1706905832329,-1000.0,0.000228,2]
[313189186,1706905832337,-500.0,0.00022815,2]
[313189188,1706905832347,-288.006745,0.00022816,2]
[313189190,1706905832356,-500.0,0.00022816,2]
[313189192,1706905832366,-800.0,0.00022816,2]
[313189194,1706905832375,-711.89,0.00022882,2]
[313189197,1706905832393,-2500.0,0.00022896,2]
[313189199,1706905832405,-524.49962544,0.00022896,2]
[313189201,1706905832416,-1001.47693699,0.00022896,2]
[313189203,1706905832426,-2106.89001088,0.00022896,2]
[313189205,1706905832435,-1048.26100712,0.00022896,2]
[313189207,1706905832445,-153.1,0.00022897,2]
[313189209,1706905832455,-74977.0085,0.00022898,2]
[313189211,1706905832464,-39354.6766,0.00022898,2]
[313189212,1706905832474,-793.77962334,0.00022898,2]
[313189213,1706905832483,-507.9052,0.000229,2]
[313189214,1706905832493,-1000.0,0.000229,2]
[313189215,1706905832502,-15228.0684,0.000229,2]
[313189216,1706905832511,-3813.40130545,0.000229,2]
[313189217,1706905832520,-155.66260271,0.000229,2]
[313189218,1706905832530,-160.66882649,0.000229,2]
[313189219,1706905832539,-2590.63235736,0.000229,2]
[313189220,1706905832548,-194.58103892,0.000229,2]
[313189221,1706905832557,-500.0,0.00022995,2]
[313189222,1706905832566,-500.0,0.00022995,2]
[313189224,1706905832576,-500.0,0.00022995,2]
[313189226,1706905832585,-500.0,0.00022995,2]
[313189228,1706905832594,-500.0,0.00022995,2]
[313189230,1706905832603,-500.0,0.00022995,2]
[313189232,1706905832614,-500.0,0.00022995,2]
[313189234,1706905832623,-536.65387319,0.00022995,2]
[313189236,1706905832633,-155.0,0.00022996,2]
[313189238,1706905832642,-502.73699602,0.00022996,2]
[313189240,1706905832651,-243.13018823,0.00022996,2]
[313189242,1706905832661,-218.5573922,0.00022996,2]
[313189244,1706905832670,-197.49477637,0.00022996,2]
[313189246,1706905832679,-699.81053348,0.00022996,2]
[313189248,1706905832690,-1044.13958215,0.00022996,2]
[313189250,1706905832700,-2788.02134693,0.00022996,2]
[313189252,1706905832709,-289.74601572,0.00022996,2]
[313189254,1706905832719,-24410.55467101,0.00022996,2]
[313189256,1706905832729,-3037.94768246,0.00022996,2]
[313189258,1706905832739,-365.07230987,0.00022996,2]
[313189260,1706905832749,-1259.57085833,0.00022996,2]
[313189262,1706905832758,-203.22221247,0.00022996,2]
[313189264,1706905832768,-1139.78306733,0.00022996,2]
[313189267,1706905832780,-5228.78655032,0.00022996,2]
[313189269,1706905832790,-387.88583909,0.00022996,2]
[313189271,1706905832799,-4638.55770228,0.00022997,2]
[313189273,1706905832809,-520.7962337,0.00022998,2]
[313189275,1706905832818,-155.0,0.00022998,2]
[313189277,1706905832827,-342.60580933,0.00022998,2]
[313189279,1706905832836,-576959.62384051,0.00022998,2]
[313189281,1706905832849,-645.74357225,0.00022998,2]
[313189283,1706905832862,-3286.53563349,0.00022998,2]
[313189287,1706905832891,-547.9993307,0.00022998,2]
[313189290,1706905832903,-430.86,0.00022998,2]
[313189293,1706905832923,-415.03901403,0.00022998,2]
[313189295,1706905832935,-3213.0006693,0.00022998,2]
[313189297,1706905832951,-765.18057038,0.00022998,2]
[313189300,1706905832963,-467.8057218,0.00022998,2]
[313189318,1706905835923,427.48,0.00019799,2]
[313189319,1706905837327,427.48,0.00022063,2]
[313189329,1706905838145,-43019.0,0.00022998,2]
[313189349,1706905841562,-3685.38050004,0.00022998,2]
[313189350,1706905841573,-7195.50037302,0.00022998,2]
[313189384,1706905843229,-5905.90669495,0.00022998,2]
[313189576,1706905848959,-200.52345751,0.00022883,2]
[313189577,1706905848969,-471.47654226,0.00022998,2]
[313189872,1706905904760,617.65,0.00022245,2]
[313189873,1706905911149,155.02,0.0002188,2]
[313189874,1706905911373,155.02,0.0002245,2]
[313189875,1706905925708,2318.0,0.00022204,2]
[313189876,1706905931609,189.76,0.00022204,2]
[313189877,1706905956746,1210.9311661,0.00022324,2]
[313189878,1706906064196,250.0,0.00021991,2]
[313189879,1706906132049,167.43,0.00021987,2]
[313189880,1706906167935,2000.0,0.00021987,2]
[313189881,1706906185985,183.11,0.00021987,2]
[313189882,1706906191965,18274.65,0.00021993,2]
[313189883,1706906197816,1247.02896397,0.00022193,2]
[313189884,1706906210318,623.61336508,0.00022072,2]
[313189885,1706906234030,328.0,0.00021993,2]
[313189886,1706906238289,623.61336508,0.00022072,2]
[313189887,1706906238901,500.0,0.00021993,2]
[313189888,1706906254528,360.77002661,0.00022072,2]
[313189889,1706906313323,459.93,0.00019799,2]
[313189890,1706906313554,459.93,0.00022063,2]
[313189891,1706906336138,257.78,0.00022,2]
[313189892,1706906337432,257.78,0.00022137,2]
[313189893,1706906338715,257.78,0.00022274,2]
[313189894,1706906338845,183.28,0.00021936,2]
[313189895,1706906339993,512.47,0.00022411,2]
[313189896,1706906347718,200.0,0.00021717,2]
[313189897,1706906360816,514.7,0.00021947,2]
[313189898,1706906361427,155.02,0.0002188,2]
[313189899,1706906411426,3209.72,0.00021891,2]
[313189900,1706906422647,748.63,0.00021923,2]
[313189901,1706906463043,189.76,0.00021937,2]
[313189902,1706906469879,809.77,0.00021937,2]
[313189903,1706906565731,250.0,0.00021941,2]
[313189904,1706906610522,150.0,0.00021887,2]
[313189905,1706906624776,258.5,0.00021713,2]
[313189906,1706906640993,699.1227919,0.00022501,2]
[313189907,1706906646118,203.71035368,0.00022501,2]
[313189908,1706906659339,496.29140932,0.00022501,2]
[313189909,1706906663515,6458.99227782,0.00022501,2]
[313189910,1706906664455,315.24379737,0.00022501,2]
[313189911,1706906666316,2145.87553657,0.00022501,2]
[313189912,1706906668924,5460.96831257,0.00022501,2]
[313189913,1706906671695,197.57874085,0.00022501,2]
[313189914,1706906672379,23900.0,0.00021903,2]
[313189915,1706906673476,492.66750071,0.00022289,2]
[313189916,1706906675101,419.42323568,0.00022501,2]
[313189917,1706906676115,4650.65386799,0.00022501,2]
[313189918,1706906679177,5230.97252369,0.00022501,2]
[313189919,1706906679275,933.6074,0.00022416,2]
[313189920,1706906680376,614.1,0.00022113,2]
[313189921,1706906680772,2000.0,0.00021713,2]
[313189922,1706906682574,264.24903257,0.00022501,2]
[313189923,1706906683108,199.85856477,0.00022501,2]
[313189924,1706906684798,338.71913676,0.00022501,2]
[313189925,1706906685242,165.37513605,0.00022501,2]
[313189926,1706906689190,155.0,0.00022501,2]
[313189927,1706906690064,3154.41404609,0.00022501,2]
[313189928,1706906707751,421.03960501,0.00021613,2]
[313189929,1706906723734,544.45125247,0.00021613,2]
[313189930,1706906727179,737.6,0.00021933,2]
[313189931,1706906748140,481.62,0.00019795,2]
[313189932,1706906748343,481.62,0.00022059,2]
[313189933,1706906818981,7808.08129591,0.00022501,2]
[313189934,1706906821343,761.27446852,0.00022501,2]
[313189935,1706906828485,353.52,0.00022,2]
[313189936,1706906838827,507.58,0.00021924,2]
[313189937,1706906842499,699.1227919,0.00022501,2]
[313189938,1706906845850,2145.87553657,0.00022501,2]
[313189939,1706906859135,853.67,0.00021954,2]
[313189941,1706906881538,157.69,0.00021875,2]
[313189942,1706906881795,157.69,0.00022038,2]
[313189943,1706906882023,157.69,0.00022201,2]
[313189944,1706906882243,157.69,0.00022364,2]
[313189945,1706906897344,189.76,0.00021916,2]
[313189946,1706906922423,157.32998881,0.00022413,2]
[313189965,1706907032261,-606.71636698,0.00022506,2]
[313189966,1706907032314,-473.48937259,0.00022506,2]
[313189967,1706907032326,-404.60980498,0.00022506,2]
[313189968,1706907032371,-3268.16376235,0.00022506,2]
[313189969,1706907032425,-2136.77629159,0.00022506,2]
[313189970,1706907032437,-918.32569742,0.00022506,2]
[313189971,1706907032446,-5460.96831257,0.00022507,2]
[313189972,1706907032455,-5230.97252369,0.00022508,2]
[313189973,1706907032465,-315.24379737,0.00022508,2]
[313189974,1706907032474,-74.48966945,0.00022512,2]
[313189975,1706907032493,-75.51033055,0.00022512,2]
[313189976,1706907032502,-300.0,0.00022512,2]
[313189977,1706907032511,-194.57966945,0.00022514,2]
[313189978,1706907032523,-8.94428571,0.00022514,2]
[313189979,1706907032533,-197.14106831,0.00022514,2]
[313189981,1706907032544,-420.83273741,0.00022514,2]
[313189983,1706907032553,-209.70718823,0.00022514,2]
[313189985,1706907032564,-1613.77352916,0.00022514,2]
[313189987,1706907032576,-378.25609224,0.00022514,2]
[313189989,1706907032587,-1131.30282455,0.00022514,2]
[313190087,1706907038243,-1309.08367005,0.00022514,2]
[313190088,1706907038252,-263.66232949,0.00022514,2]
[313190089,1706907038262,-199.69877423,0.00022514,2]
[313190090,1706907038272,-155.0,0.00022514,2]
[313190091,1706907038281,-216.88992443,0.00022514,2]
[313190092,1706907038290,-1520.1853018,0.00022514,2]
[313190093,1706907038325,-398.96989766,0.00022514,2]
[313190094,1706907038357,-1230.89808039,0.00022514,2]
[313190095,1706907038366,-164.92227131,0.00022514,2]
[313190096,1706907038376,-347.41827726,0.00022514,2]
[313190097,1706907038385,-492.73164959,0.00022514,2]
[313190098,1706907038409,-72.62182057,0.00022514,2]
[313190099,1706907038418,-2133.17743875,0.00022514,2]
[313190100,1706907038427,-1978.7463602,0.00022515,2]
[313190101,1706907038436,-8336.35566098,0.00022516,2]
[313190102,1706907038481,-24926.29655199,0.00022516,2]
[313190103,1706907038493,-108415.17031962,0.00022516,2]
[313190104,1706907038502,-157.69,0.00022527,2]
[313190105,1706907038511,-4687.7232998,0.00022537,2]
[313190106,1706907038520,-1070.92325045,0.00022538,2]
[313190107,1706907038529,-1247.02896397,0.00022583,2]
[313190108,1706907038539,-157.69,0.0002269,2]
[313190109,1706907038548,-1000.0,0.000227,2]
[313190110,1706907038557,-849.8598222,0.00022768,2]
[313190112,1706907038587,-561.22252724,0.00022768,2]
[313190114,1706907038598,-278.20064693,0.00022768,2]
[313190117,1706907038609,-894.44295914,0.00022768,2]
[313190119,1706907038624,-244.9649998,0.00022768,2]
[313190121,1706907038633,-152.89576,0.00022768,2]
[313190123,1706907038643,-26.2392362,0.000228,2]
[313190287,1706907041504,-574.03358918,0.000228,2]
[313190288,1706907041581,-399.72717462,0.000228,2]
[313190289,1706907041590,-147.80031931,0.000228,2]
[313190291,1706907043361,-670.32968069,0.000228,2]
[313190292,1706907043370,-800.0,0.00022815,2]
[313190293,1706907043380,-368.45173078,0.00022816,2]
[313190294,1706907043391,-431.54826922,0.00022816,2]
[313190295,1706907043401,-157.69,0.00022852,2]
[313190296,1706907043410,-1574.628451,0.00022894,2]
[313190297,1706907043625,-265.8551209,0.00022894,2]
[313190315,1706907046318,-204.09151366,0.00022798,2]
[313190316,1706907046328,-314.07478295,0.00022799,2]
[313190317,1706907046337,-694.66286842,0.00022799,2]
[313190318,1706907046347,-2937.17083497,0.00022894,2]
[313190319,1706907046426,-314.9813052,0.00022894,2]
[313190320,1706907046484,-1195.29858793,0.00022894,2]
[313190321,1706907046493,-957.90141207,0.00022894,2]
[313190322,1706907046505,-2299.29999998,0.00022894,2]
[313190329,1706907098602,200.0,0.00021871,2]
[313190330,1706907123614,167.47,0.00021839,2]
[313190331,1706907144217,250.0,0.00021833,2]
[313190332,1706907146896,409.92,0.00021833,2]
[313190333,1706907172350,495.17,0.00019847,2]
[313190334,1706907172560,495.17,0.00022111,2]
[313190335,1706907254847,2000.0,0.00021755,2]
[313190336,1706907273529,191.49315037,0.00022501,2]
[313190337,1706907282182,711.39,0.00021756,2]
[313190338,1706907283613,311.10938782,0.00022501,2]
[313190339,1706907293791,2789.28128884,0.00022501,2]
[313190340,1706907296106,5230.97252369,0.00022501,2]
[313190341,1706907301256,526.76054417,0.00022501,2]
[313190342,1706907317004,189.76,0.00021756,2]
[313190343,1706907322223,644.4455013,0.00022501,2]
[313190344,1706907352663,157.32998881,0.00022413,2]
[313190345,1706907400585,158.38,0.00021911,2]
[313190346,1706907400857,158.38,0.00022292,2]
[313190347,1706907453849,205.0,0.00021819,2]
[313190348,1706907520952,856.49,0.00021746,2]
[313190349,1706907525851,203.31012739,0.000225,2]
[313190350,1706907548710,15346.77,0.00021746,2]
[313190351,1706907564159,943.43596546,0.000225,2]
[313190352,1706907572715,525.39690255,0.000225,2]
[313190353,1706907575282,526.76054417,0.000225,2]
[313190354,1706907580675,672.06,0.0002175,2]
[313190355,1706907582933,250.0,0.0002175,2]
[313190356,1706907621109,445.65,0.0001983,2]
[313190357,1706907621332,445.65,0.00022094,2]
[313190358,1706907642794,155.1,0.00021747,2]
[313190359,1706907644854,80643.52613643,0.00022231,2]
[313190360,1706907644881,119356.47386357,0.00022231,2]
[313190361,1706907688805,1279.99,0.00021747,2]
[313190365,1706907774600,1366.64,0.00021925,2]
[313190366,1706907778256,887.79,0.00021752,2]
[313190370,1706907798165,157.32998881,0.00022413,2]
[313190371,1706907830307,159.07,0.00021913,2]
[313190372,1706907830512,159.07,0.00022484,2]
[313190374,1706907866907,155.0,0.00022484,30]
[313190375,1706908008910,250.0,0.00021738,2]
[313190376,1706908013769,462.35,0.00021738,2]
[313190377,1706908048561,456.63,0.00019815,2]
[313190378,1706908048813,456.63,0.00022079,2]
[313190379,1706908055609,503.84,0.00021732,2]
[313190380,1706908117751,164.16,0.00021738,2]
[313190381,1706908208133,15291.42,0.00021732,2]
[313190389,1706908231424,-496.10168245,0.0002251,2]
[313190390,1706908231437,-401.911,0.0002251,2]
[313190391,1706908231449,-929.82241406,0.0002251,2]
[313190392,1706908231465,-1082.81913398,0.0002251,2]
[313190393,1706908231474,-150.0,0.00022511,2]
[313190394,1706908231483,-300.0,0.00022511,2]
[313190395,1706908231493,-716.3,0.00022512,2]
[313190396,1706908231502,-714.87,0.00022512,2]
[313190397,1706908231512,-723.56,0.00022512,2]
[313190398,1706908231521,-609.38566602,0.00022512,2]
[313190399,1706908231533,-118.22433398,0.00022512,2]
[313190400,1706908231542,-316.82319258,0.00022512,2]
[313190401,1706908231554,-397.33680742,0.00022512,2]
[313190402,1706908231564,-826.94821562,0.00022514,2]
[313190403,1706908231577,-1357.89469464,0.00022514,2]
[313190404,1706908231588,-517.85068696,0.00022514,2]
[313190405,1706908231604,-341.48500725,0.00022514,2]
[313190406,1706908231615,-737.05569696,0.00022514,2]
[313190407,1706908231628,-3409.97307988,0.00022514,2]
[313190408,1706908231639,-616.8739146,0.00022514,2]
[313190409,1706908231649,-157.32998881,0.00022535,2]
[313190410,1706908231658,-2066.3926,0.00022541,2]
[313190411,1706908231667,-970.32993756,0.00022542,2]
[313190412,1706908231676,-193.70434859,0.00022631,2]
[313190413,1706908231685,-408.41431133,0.00022639,2]
[313190414,1706908231694,-1047.62,0.0002264,2]
[313190415,1706908231703,-5456.44003949,0.00022641,2]
[313190416,1706908231715,-2872.46869429,0.00022641,2]
[313190417,1706908231726,-603.01113768,0.00022641,2]
[313190418,1706908231744,-1386.72675487,0.00022641,2]
[313190419,1706908231756,-437.73689209,0.00022641,2]
[313190420,1706908231769,-731.05457428,0.00022641,2]
[313190421,1706908231780,-763.3723559,0.00022641,2]
[313190422,1706908231791,-7214.93304112,0.00022641,2]
[313190423,1706908231804,-667.61891395,0.00022641,2]
[313190424,1706908231817,-82592.97982137,0.00022641,2]
[313190425,1706908231829,-169586.96683947,0.00022641,2]
[313190426,1706908232489,222.82,0.00021723,2]
[313190427,1706908234883,-564.66263687,0.00022641,2]
[313190430,1706908234895,-521.07491688,0.00022641,2]
[313190472,1706908237441,-89962.08709051,0.00022641,2]
[313190476,1706908237498,-398.66629,0.00022641,2]
[313190477,1706908237610,-270659.47419233,0.00022641,2]
[313190478,1706908237622,-35078.73385372,0.00022641,2]
[313190479,1706908237774,-1425.94447234,0.00022641,2]
[313190480,1706908237786,-1708.77529307,0.00022641,2]
[313190481,1706908237797,-882.79385267,0.00022641,2]
[313190482,1706908237806,-246.76334019,0.00022642,2]
[313190483,1706908237817,-1990.41265981,0.00022642,2]
[313190484,1706908237826,-1997.63734019,0.00022642,2]
[313190485,1706908237842,-7586.90048263,0.00022642,2]
[313190680,1706908240824,-2577.695,0.00022541,2]
[313190724,1706908242707,-446.54347181,0.00022541,2]
[313190725,1706908242718,-2963.23088319,0.00022541,2]
[313190726,1706908242729,-1174.34256977,0.00022541,2]
[313190727,1706908242741,-92838.18807523,0.00022541,2]
[313190728,1706908242750,-39448.6147167,0.00022541,2]
[313190729,1706908242766,-141985.8886065,0.00022541,2]
[313190730,1706908242777,-63565.4966768,0.00022541,2]
[313190731,1706908242786,-3083.66523063,0.00022628,2]
[313190732,1706908242794,-378031.30307833,0.00022641,2]
[313190733,1706908242803,-150933.93846014,0.00022642,2]
[313190734,1706908242819,-17202.41579415,0.00022642,2]
[313190735,1706908242829,-10641.061002,0.00022642,2]
[313190736,1706908242875,-22082.30111777,0.00022642,2]
[313190737,1706908242887,-20970.71200001,0.00022642,2]
[313190738,1706908242897,-12049.28039264,0.00022642,2]
[313190739,1706908242933,-624.1021534,0.00022642,2]
[313190750,1706908245372,503.73358824,0.0002264,120]
[313190751,1706908245446,-261.41046666,0.00022641,2]
[313190752,1706908245456,-503.27286186,0.00022641,2]
[313190753,1706908245503,-1314.38519298,0.00022641,2]
[313190754,1706908245513,-216.27832351,0.00022641,2]
[313190755,1706908245522,-187.20216054,0.00022641,2]
[313190756,1706908245531,-159.30807019,0.00022641,2]
[313190757,1706908245540,-885.02105069,0.00022641,2]
[313190758,1706908245549,-218.53731124,0.00022641,2]
[313190759,1706908245559,-214.80173683,0.00022641,2]
[313190760,1706908245568,-37326.47825707,0.00022642,2]
[313190761,1706908245577,-5000.0,0.00022642,2]
[313190762,1706908245587,-268.19661931,0.00022643,2]
[313190763,1706908245597,-157.32998881,0.00022657,2]
[313190764,1706908245606,-4397.46013163,0.00022694,2]
[313190765,1706908245615,-257.48503298,0.00022725,2]
[313190766,1706908245625,-150.0,0.00022727,2]
[313190767,1706908245634,-150.0,0.00022727,2]
[313190768,1706908245643,-1500.0,0.00022727,2]
[313190769,1706908245652,-300.0,0.00022729,2]
[313190770,1706908245661,-150.0,0.00022736,2]
[313190771,1706908245670,-150.0,0.00022736,2]
[313190772,1706908245680,-150.0,0.00022736,2]
[313190773,1706908245689,-150.0,0.00022737,2]
[313190774,1706908245698,-150.0,0.00022737,2]
[313190775,1706908245707,-300.0,0.00022739,2]
[313190776,1706908245717,-220.30306813,0.0002274,2]
[313190777,1706908245726,-2167.52559884,0.0002274,2]
[313190778,1706908245735,-155.48736217,0.0002274,2]
[313190779,1706908245744,-158.30695886,0.0002274,2]
[313190780,1706908245753,-2144.43375818,0.0002274,2]
[313190781,1706908245762,-5442.70539136,0.0002274,2]
[313190782,1706908245771,-155.0,0.0002274,2]
[313190783,1706908245780,-1850.5397768,0.0002274,2]
[313190784,1706908245789,-310.33773127,0.0002274,2]
[313190785,1706908245798,-1068.83824203,0.0002274,2]
[313190786,1706908245808,-1887.27893299,0.0002274,2]
[313190787,1706908245818,-1975.82438987,0.0002274,2]
[313190788,1706908245829,-644.14940004,0.0002274,2]
[313190789,1706908245839,-637.00641291,0.0002274,2]
[313190790,1706908245847,-303.63726256,0.0002274,2]
[313190792,1706908245957,-150.0,0.0002274,2]
[313190793,1706908245971,-4304.00917133,0.0002274,2]
[313190794,1706908245981,-191.07095683,0.00022741,2]
[313190795,1706908245991,-231.34778786,0.00022741,2]
[313190796,1706908246001,-6726.57359647,0.00022741,2]